bitfinex-derivatives/quotes_BTCF0:USTF0_20250427
["timestamp","ask_amount","ask_price","bid_price","bid_amount"]
[1745720132607,0.1886,94489.0,94482.0,0.3961]
[1745720132807,0.1886,94489.0,94482.0,0.3981]
[1745720133103,0.1886,94489.0,94483.0,0.2115893]
[1745720133503,0.1886,94489.0,94482.0,0.3981]
[1745720133803,0.3611,94489.0,94483.0,0.2115876]
[1745720134600,0.3611,94489.0,94482.0,0.3981]
[1745720134601,0.1886,94489.0,94484.0,0.2115865]
[1745720134799,0.1886,94489.0,94485.0,0.3816]
[1745720135799,0.1886,94489.0,94485.0,0.3836]
[1745720136003,0.1886,94489.0,94486.0,0.1906]
[1745720136397,0.1886,94489.0,94487.0,0.3816]
[1745720138007,0.1886,94489.0,94487.0,0.3836]
[1745720145613,0.5494,94489.0,94487.0,0.3836]
[1745720149423,0.3608,94489.0,94487.0,0.3836]
[1745720149813,0.3608,94489.0,94487.0,0.5951794]
[1745720150119,0.21156,94497.0,94487.0,0.3836]
[1745720150318,0.1857,94496.0,94487.0,0.3836]
[1745720150519,0.1857,94496.0,94487.0,0.45774506]
[1745720151516,0.1857,94496.0,94487.0,0.45674506]
[1745720152829,0.3972608,94496.0,94487.0,0.45674506]
[1745720153434,0.3972608,94496.0,94487.0,0.3826]
[1745720153827,0.1857,94496.0,94487.0,0.3826]
[1745720154426,0.3972616,94496.0,94487.0,0.3826]
[1745720156032,0.1857,94496.0,94487.0,0.3826]
[1745720156224,0.2115677,94493.0,94487.0,0.3826]
[1745720156430,0.1942,94492.0,94487.0,0.3826]
[1745720157526,0.1942,94492.0,94487.0,0.3836]
[1745720159727,0.2115781,94488.0,94487.0,0.3836]
[1745720159930,0.5476,94491.0,94476.0,0.36397983]
[1745720160234,0.3608,94478.0,94466.0,0.00158802]
[1745720160532,0.2116061,94476.0,94470.0,0.1892]
[1745720160735,0.1962,94475.0,94470.0,0.1892]
[1745720161229,0.1962,94475.0,94471.0,0.1866]
[1745720163133,0.1962,94475.0,94472.0,0.1874]
[1745720163536,0.1962,94475.0,94473.0,0.189]
[1745720164028,0.1962,94475.0,94474.0,0.1874]
[1745720165234,0.4078072,94475.0,94474.0,0.1884]
[1745720165831,0.2116246,94468.0,94449.0,0.1348762]
[1745720166032,0.2116229,94468.0,94467.0,0.1822]
[1745720166236,0.2116279,94466.0,94462.0,0.184]
[1745720166432,0.1838,94465.0,94463.0,0.3714]
[1745720166630,0.3608,94464.0,94463.0,0.3714]
[1745720167737,0.3608,94464.0,94463.0,0.5534]
[1745720168042,0.3608,94464.0,94463.0,0.5564]
[1745720169632,0.3608,94464.0,94463.0,0.5534]
[1745720169832,0.3608,94464.0,94463.0,0.5554]
[1745720172237,0.3608,94464.0,94463.0,0.3734]
[1745720172432,0.3608,94464.0,94446.0,0.1874]
[1745720172751,0.3608,94464.0,94430.0,0.11401589]
[1745720172752,0.3608,94447.0,94430.0,0.00105898]
[1745720172936,0.1846,94446.0,94434.0,0.0529246]
[1745720173135,0.1846,94446.0,94440.0,0.2116846]
[1745720173331,0.1846,94446.0,94434.0,0.25]
[1745720173535,0.2116799,94443.0,94434.0,0.25]
[1745720173737,0.198,94442.0,94434.0,0.25]
[1745720174436,0.20609403,94442.0,94434.0,0.25]
[1745720174639,0.20609403,94442.0,94435.0,0.2116958]
[1745720175045,0.20609403,94442.0,94435.0,0.4616958]
[1745720175247,0.24988574,94442.0,94435.0,0.25]
[1745720175650,0.24988574,94442.0,94436.0,0.5964935]
[1745720175947,0.05188574,94442.0,94436.0,0.7773935]
[1745720176149,0.3876,94446.0,94436.0,0.7773935]
[1745720176544,0.3826,94446.0,94436.0,0.5657]
[1745720176744,0.005,94442.0,94436.0,0.5657]
[1745720177347,0.2116773,94444.0,94436.0,0.5677]
[1745720177851,0.1971,94443.0,94436.0,0.5677]
[1745720178049,0.1971,94443.0,94436.0,0.3878]
[1745720178553,0.24258127,94443.0,94436.0,0.3878]
[1745720179644,0.45426167,94443.0,94436.0,0.3878]
[1745720179947,0.24258127,94443.0,94436.0,0.3878]
[1745720180345,0.45426147,94443.0,94436.0,0.3848]
[1745720180545,0.45426147,94443.0,94436.0,0.3868]
[1745720180947,0.45426147,94443.0,94436.0,0.3848]
[1745720180948,0.24258127,94443.0,94436.0,0.3848]
[1745720181251,0.24258127,94443.0,94436.0,0.3878]
[1745720183750,0.24258127,94443.0,94441.0,0.2116823]
[1745720183944,0.04548127,94443.0,94442.0,0.1918]
[1745720184144,0.19272164,94446.0,94442.0,0.1918]
[1745720184444,0.19272164,94446.0,94443.0,0.1952]
[1745720184644,0.19272164,94446.0,94443.0,0.3765]
[1745720184844,0.19272164,94446.0,94444.0,0.1918]
[1745720185044,0.23664548,94446.0,94444.0,0.1918]
[1745720185247,0.23664548,94446.0,94445.0,0.1952]
[1745720186048,0.43324548,94446.0,94445.0,0.1952]
[1745720186748,0.43324548,94446.0,94444.0,0.1918]
[1745720186951,0.43324548,94446.0,94443.0,0.1833]
[1745720186952,0.1979,94445.0,94443.0,0.002]
[1745720187153,0.1979,94445.0,94433.0,0.2117005]
[1745720187449,0.1966,94444.0,94433.0,0.2117005]
[1745720187640,0.1966,94444.0,94433.0,0.4617005]
[1745720187840,0.5587,94443.0,94433.0,0.4617005]
[1745720188247,0.1966,94442.0,94433.0,0.4617005]
[1745720188645,0.1966,94442.0,94430.0,0.05398588]
[1745720188646,0.2117058,94431.0,94430.0,0.00105898]
[1745720188949,0.2117058,94431.0,94399.0,0.052944]
[1745720188950,0.2117165,94427.0,94406.0,0.08172]
[1745720189253,0.3608,94424.0,94410.0,0.11295691]
[1745720189452,0.3608,94424.0,94412.0,0.2117469]
[1745720189651,0.1866,94423.0,94412.0,0.25]
[1745720190045,0.1866,94423.0,94413.0,0.5862]
[1745720190452,0.1866,94423.0,94413.0,0.8362]
[1745720190852,0.3983241,94423.0,94413.0,0.8362]
[1745720191152,0.1946,94423.0,94413.0,0.8362]
[1745720191546,0.4063243,94423.0,94413.0,0.8362]
[1745720192360,0.2117261,94422.0,94413.0,0.8362]
[1745720192745,0.1946,94423.0,94413.0,0.8362]
[1745720192746,0.4107286,94421.0,94413.0,0.8362]
[1745720193053,0.2117322,94420.0,94413.0,0.8362]
[1745720193445,0.4107329,94419.0,94413.0,0.8362]
[1745720193954,0.199,94419.0,94413.0,0.8362]
[1745720194152,0.199,94419.0,94414.0,0.3608]
[1745720194353,0.199,94419.0,94415.0,0.2117415]
[1745720194550,0.207,94419.0,94415.0,0.5921415]
[1745720194752,0.207,94419.0,94415.0,0.6304]
[1745720195443,0.207,94419.0,94415.0,0.6314]
[1745720196153,0.207,94419.0,94418.0,0.211735]
[1745720196554,0.207,94419.0,94418.0,0.461735]
[1745720197254,0.207,94419.0,94418.0,0.211735]
[1745720197461,0.199,94419.0,94418.0,0.211735]
[1745720197754,0.208,94419.0,94418.0,0.212735]
[1745720198155,0.208,94419.0,94418.0,0.001]
[1745720198850,0.208,94419.0,94418.0,0.212735]
[1745720201461,0.009,94419.0,94418.0,0.462735]
[1745720201647,0.009,94419.0,94418.0,0.568647]
[1745720202055,0.009,94419.0,94418.0,0.462735]
[1745720202255,0.009,94419.0,94418.0,0.582735]
[1745720208167,0.009,94419.0,94418.0,0.462735]
[1745720210467,0.009,94419.0,94418.0,0.841335]
[1745720211762,0.009,94419.0,94418.0,0.591335]
[1745720212564,0.009,94419.0,94418.0,0.841335]
[1745720215370,0.009,94419.0,94418.0,0.591335]
[1745720219767,0.009,94419.0,94418.0,0.3796]
[1745720222262,0.009,94419.0,94418.0,0.1957]
[1745720225279,0.009,94419.0,94418.0,0.001]
[1745720227469,0.009,94419.0,94403.0,0.3608]
[1745720227470,0.644472,94419.0,94403.0,0.3608]
[1745720227772,0.11319599,94413.0,94403.0,0.3608]
[1745720227970,0.3608,94414.0,94403.0,0.3608]
[1745720229773,0.3658,94414.0,94403.0,0.3618]
[1745720230775,0.3608,94405.0,94403.0,0.001]
[1745720232566,0.3668,94405.0,94403.0,0.001]
[1745720232768,0.40487084,94405.0,94403.0,0.001]
[1745720233275,0.40587084,94405.0,94403.0,0.001]
[1745720234271,0.04507084,94405.0,94403.0,0.001]
[1745720234472,0.40587084,94405.0,94403.0,0.001]
[1745720237776,0.04507084,94405.0,94403.0,0.001]
[1745720246275,0.04507084,94405.0,94403.0,0.251]
[1745720252289,0.04507084,94405.0,94403.0,0.001]
[1745720261092,0.1952,94404.0,94403.0,0.001]
[1745720262090,0.1952,94404.0,94403.0,0.2127686]
[1745720262494,0.2022,94404.0,94403.0,0.2127686]
[1745720262997,0.3901,94404.0,94403.0,0.2127686]
[1745720264688,0.5701,94404.0,94403.0,0.4081686]
[1745720266598,0.5701,94404.0,94403.0,0.1964]
[1745720266896,0.5701,94404.0,94403.0,0.4081686]
[1745720268200,0.3822,94404.0,94403.0,0.4081686]
[1745720268699,0.03807084,94405.0,94404.0,0.2117664]
[1745720268898,0.3608,94409.0,94408.0,0.2117574]
[1745720269504,0.1808,94418.0,94410.0,0.2117522]
[1745720269705,0.1808,94418.0,94411.0,0.2117503]
[1745720269894,0.1959,94417.0,94411.0,0.2117503]
[1745720270093,0.22885401,94417.0,94411.0,0.2117503]
[1745720270294,0.1808,94416.0,94411.0,0.2117503]
[1745720270705,0.1973,94415.0,94411.0,0.2117503]
[1745720271300,0.1808,94414.0,94412.0,0.2117477]
[1745720271706,0.3936,94413.0,94412.0,0.2117477]
[1745720273306,0.3976,94413.0,94412.0,0.2117477]
[1745720273605,0.3976,94413.0,94411.0,0.1906]
[1745720273805,0.373,94412.0,94411.0,0.1906]
[1745720274101,0.373,94412.0,94411.0,0.4023507]
[1745720275106,0.379,94412.0,94411.0,0.4033507]
[1745720282906,0.379,94412.0,94411.0,0.2127507]
[1745720284308,0.7398,94412.0,94411.0,0.001]
[1745720285406,0.7398,94412.0,94411.0,0.2127507]
[1745720286600,0.379,94412.0,94411.0,0.2127507]
[1745720288914,0.379,94412.0,94411.0,0.001]
[1745720289214,0.1918,94412.0,94411.0,0.2127507]
[1745720291317,0.1918,94412.0,94411.0,0.4071507]
[1745720293318,0.006,94412.0,94411.0,0.6571507]
[1745720293819,0.1838,94428.0,94411.0,0.6571507]
[1745720293820,0.2116814,94442.0,94412.0,0.0529366]
[1745720294005,0.19,94425.0,94424.0,0.5725215]
[1745720294810,0.2217036,94425.0,94424.0,0.5725215]
[1745720295019,0.2217036,94425.0,94424.0,0.9383215]
[1745720295209,0.2217036,94425.0,94424.0,1.0583215]
[1745720296318,0.2227036,94425.0,94424.0,0.9473215]
[1745720297212,0.2227036,94425.0,94424.0,1.0673215]
[1745720298316,0.2227036,94425.0,94424.0,0.9473215]
[1745720298612,0.0327036,94425.0,94424.0,0.9473215]
[1745720302408,0.0327036,94425.0,94424.0,0.5865215]
[1745720302609,0.0327036,94425.0,94424.0,0.9473215]
[1745720303610,0.0327036,94425.0,94424.0,0.3698]
[1745720303811,0.0327036,94425.0,94424.0,0.5815215]
[1745720305611,0.0327036,94425.0,94424.0,0.3698]
[1745720306114,0.1386076,94425.0,94424.0,0.3698]
[1745720307114,0.0327036,94425.0,94424.0,0.3698]
[1745720308823,0.0327036,94425.0,94424.0,0.009]
[1745720312825,0.2244036,94425.0,94424.0,0.009]
[1745720330632,0.0327036,94425.0,94424.0,0.5815215]
[1745720330834,0.0327036,94425.0,94424.0,0.3698]
[1745720331329,0.0327036,94425.0,94424.0,0.7644215]
[1745720352043,0.0327036,94425.0,94424.0,0.8844215]
[1745720352643,0.001,94425.0,94424.0,0.9903255]
[1745720352844,0.2116527,94455.0,94424.0,1.638604]
[1745720353140,0.1815,94442.0,94441.0,0.2116834]
[1745720353335,0.1815,94442.0,94441.0,0.5724834]
[1745720355343,0.1815,94442.0,94441.0,0.5794834]
[1745720356040,0.05412554,94443.0,94442.0,0.2116812]
[1745720356243,0.2935628,94448.0,94447.0,0.21167]
[1745720356545,0.3608,94479.0,94457.0,0.2116476]
[1745720356841,0.1879,94463.0,94462.0,0.2116364]
[1745720357244,0.1879,94463.0,94462.0,0.3316364]
[1745720357439,0.1907,94477.0,94476.0,0.211605]
[1745720357638,0.1879,94476.0,94471.0,0.3608]
[1745720357942,0.1879,94476.0,94475.0,0.2116072]
[1745720358244,0.23989061,94476.0,94475.0,0.2116072]
[1745720359233,0.23989061,94476.0,94473.0,0.0529029]
[1745720359234,0.0013,94481.0,94480.0,0.2115961]
[1745720359435,0.0013,94481.0,94480.0,0.5723961]
[1745720359746,0.0013,94481.0,94480.0,0.6782361]
[1745720360240,0.0013,94481.0,94480.0,0.7982361]
[1745720363933,0.0013,94481.0,94480.0,0.8784361]
[1745720365735,0.0013,94481.0,94480.0,0.561]
[1745720365933,0.0013,94481.0,94480.0,0.7725961]
[1745720366136,0.0013,94481.0,94480.0,0.5723961]
[1745720366636,0.1825,94481.0,94480.0,0.5723961]
[1745720370143,0.0013,94481.0,94480.0,0.5723961]
[1745720370334,0.0013,94481.0,94480.0,0.6782361]
[1745720371137,0.0013,94481.0,94480.0,0.6923961]
[1745720371738,0.0013,94481.0,94480.0,0.8865961]
[1745720372146,0.0013,94481.0,94480.0,0.7665961]
[1745720372341,0.0013,94481.0,94480.0,0.7705961]
[1745720372938,0.0013,94481.0,94480.0,1.1313961]
[1745720376244,1e-08,94481.0,94480.0,1.2513961]
[1745720376435,0.0052,94488.0,94480.0,1.14564]
[1745720376640,0.0052,94488.0,94487.0,0.2115804]
[1745720376850,0.05736893,94488.0,94487.0,0.2115804]
[1745720377152,0.0052,94488.0,94487.0,0.2115804]
[1745720377349,0.0052,94488.0,94487.0,0.5777804]
[1745720377937,0.1846,94499.0,94498.0,0.2115557]
[1745720378143,0.23839425,94499.0,94498.0,0.2115557]
[1745720378638,0.43739425,94499.0,94498.0,0.2115557]
[1745720378840,0.43739425,94499.0,94498.0,0.3977557]
[1745720379139,0.43739425,94499.0,94498.0,0.5966557]
[1745720379341,0.43739425,94499.0,94498.0,0.3977557]
[1745720379536,0.43739425,94499.0,94498.0,0.4007557]
[1745720379740,0.61859425,94499.0,94498.0,0.4007557]
[1745720380644,0.62643467,94499.0,94498.0,0.4007557]
[1745720381544,0.61859425,94499.0,94498.0,0.4007557]
[1745720381736,0.5648,94499.0,94498.0,0.4007557]
[1745720381940,0.3658,94499.0,94498.0,0.4007557]
[1745720382139,0.3658,94499.0,94498.0,0.5207557]
[1745720382939,0.1812,94499.0,94498.0,0.5207557]
[1745720383345,0.1812,94499.0,94498.0,0.7097557]
[1745720388553,0.05326506,94507.0,94506.0,0.052884]
[1745720388759,0.1936,94509.0,94508.0,0.2115334]
[1745720389250,0.1936,94509.0,94508.0,0.3315334]
[1745720389450,0.05281515,94514.0,94510.0,0.2115289]
[1745720389657,0.1934,94516.0,94510.0,0.5723289]
[1745720390156,0.00796117,94514.0,94510.0,1.0674289]
[1745720390553,0.1934,94516.0,94510.0,1.0674289]
[1745720390753,0.05233876,94514.0,94510.0,1.0674289]
[1745720391256,0.1849,94513.0,94510.0,1.0674289]
[1745720391650,0.1849,94513.0,94510.0,1.0714289]
[1745720391850,0.1855,94512.0,94510.0,1.0714289]
[1745720396256,0.1855,94512.0,94510.0,1.4322289]
[1745720397451,0.1849,94513.0,94510.0,1.4322289]
[1745720397760,0.1912,94512.0,94510.0,1.4322289]
[1745720399856,0.193,94511.0,94510.0,1.4322289]
[1745720400554,0.193,94511.0,94510.0,0.7106289]
[1745720400851,0.193,94511.0,94510.0,1.4322289]
[1745720401459,1e-08,94511.0,94510.0,1.4322289]
[1745720401860,1e-08,94511.0,94510.0,1.4352289]
[1745720403861,1e-08,94511.0,94510.0,1.0601289]
[1745720404065,1e-08,94511.0,94510.0,0.9401289]
[1745720404253,1e-08,94511.0,94510.0,1.0200089]
[1745720405763,1e-08,94511.0,94510.0,0.6592089]
[1745720406467,1e-08,94511.0,94510.0,0.8430089]
[1745720407061,1e-08,94511.0,94510.0,0.9630089]
[1745720407365,1e-08,94511.0,94510.0,0.7792089]
[1745720408260,1e-08,94511.0,94510.0,0.6592089]
[1745720408460,1e-08,94511.0,94510.0,0.8430089]
[1745720415565,1e-08,94511.0,94510.0,0.6592089]
[1745720415765,1e-08,94511.0,94510.0,0.44768]
[1745720415958,1e-08,94511.0,94510.0,0.5793289]
[1745720418070,1e-08,94511.0,94510.0,0.9683289]
[1745720422264,1e-08,94511.0,94510.0,0.7702289]
[1745720423574,1e-08,94511.0,94510.0,0.9627289]
[1745720424074,1e-08,94511.0,94510.0,1.06853689]
[1745720425667,1e-08,94511.0,94510.0,1.31491672]
[1745720428174,1e-08,94511.0,94510.0,1.67571672]
[1745720428367,1e-08,94511.0,94510.0,1.56990873]
[1745720429572,1e-08,94518.0,94510.0,1.35837983]
[1745720429773,0.1945,94535.0,94534.0,0.2114752]
[1745720430074,0.1945,94535.0,94534.0,0.5722752]
[1745720430470,0.1945,94535.0,94534.0,0.7612752]
[1745720431580,0.3668,94540.0,94539.0,0.211464]
[1745720431776,0.1803,94540.0,94539.0,0.211464]
[1745720432278,0.05410876,94544.0,94540.0,0.2114618]
[1745720432969,0.3906,94543.0,94540.0,0.4006618]
[1745720434183,0.3906,94543.0,94540.0,0.5940618]
[1745720434575,0.3906,94543.0,94540.0,0.5960618]
[1745720438070,0.3906,94543.0,94540.0,1.3176618]
[1745720438476,0.3906,94543.0,94540.0,1.3156618]
[1745720438779,0.3906,94543.0,94540.0,1.3206618]
[1745720440277,0.1993,94543.0,94540.0,1.3206618]
[1745720440472,0.29616844,94545.0,94540.0,1.3206618]
[1745720441784,0.3945,94544.0,94540.0,1.3206618]
[1745720444986,0.3945,94544.0,94540.0,0.5990618]
[1745720445181,0.3945,94544.0,94540.0,1.3206618]
[1745720446891,0.3945,94544.0,94540.0,1.1272618]
[1745720447100,0.3945,94544.0,94540.0,1.2069018]
[1745720454602,0.3945,94544.0,94540.0,0.4853018]
[1745720454801,0.3945,94544.0,94540.0,1.2069018]
[1745720457595,0.3945,94544.0,94540.0,1.1272618]
[1745720457792,0.3945,94544.0,94540.0,1.2066618]
[1745720459700,0.195,94544.0,94540.0,1.2066618]
[1745720460496,0.29616844,94545.0,94540.0,1.2066618]
[1745720463793,0.29616844,94545.0,94540.0,1.45304163]
[1745720468190,0.3945,94547.0,94540.0,1.45304163]
[1745720468394,0.1993,94544.0,94540.0,1.45304163]
[1745720469196,0.1831,94543.0,94540.0,1.45304163]
[1745720469906,0.1952,94542.0,94540.0,1.45304163]
[1745720470294,0.1956,94541.0,94540.0,1.45304163]
[1745720470603,0.1956,94541.0,94540.0,1.37364163]
[1745720470809,0.1956,94541.0,94540.0,1.18444163]
[1745720475399,0.1956,94541.0,94540.0,1.38384163]
[1745720480006,0.1956,94541.0,94540.0,1.46304163]
[1745720481599,0.1956,94541.0,94540.0,1.2166618]
[1745720481909,0.1956,94541.0,94540.0,1.0172618]
[1745720482104,0.1956,94541.0,94540.0,0.9380618]
[1745720482610,0.1956,94541.0,94540.0,0.5772618]
[1745720484302,0.1956,94541.0,94540.0,0.7715618]
[1745720492603,0.51283551,94541.0,94540.0,0.3658]
[1745720492801,0.30137601,94541.0,94540.0,0.2164618]
[1745720493309,0.1956,94541.0,94540.0,0.2164618]
[1745720493500,0.1956,94541.0,94540.0,0.4035618]
[1745720499018,0.1956,94541.0,94540.0,0.5885618]
[1745720504229,0.0013,94541.0,94540.0,0.5885618]
[1745720508818,0.0013,94541.0,94540.0,0.9493618]
[1745720520522,0.0013,94541.0,94540.0,0.5885618]
[1745720520712,0.0013,94541.0,94540.0,0.9493618]
[1745720537318,0.0013,94541.0,94540.0,0.5529]
[1745720537520,0.0013,94541.0,94540.0,0.7643618]
[1745720537727,0.0013,94541.0,94540.0,0.3658]
[1745720537926,0.0013,94541.0,94540.0,0.5772618]
[1745720538524,0.0013,94541.0,94540.0,0.2164618]
[1745720539826,0.2127595,94541.0,94540.0,0.005]
[1745720540625,0.5902595,94541.0,94540.0,0.005]
[1745720555339,0.48457601,94541.0,94521.0,0.00158701]
[1745720555543,0.211482,94531.0,94526.0,0.1953]
[1745720555839,0.2114877,94529.0,94526.0,0.1953]
[1745720556039,0.3812,94528.0,94526.0,0.1953]
[1745720556632,0.1901,94530.0,94529.0,0.2114864]
[1745720556836,0.002,94531.0,94530.0,0.2114841]
[1745720557546,0.1927,94536.0,94535.0,0.2114729]
[1745720557740,0.3896,94536.0,94535.0,0.2114729]
[1745720557936,0.3896,94536.0,94534.0,0.1873]
[1745720559654,0.3896,94536.0,94535.0,0.005]
[1745720560038,0.3896,94536.0,94534.0,0.1873]
[1745720560230,0.3896,94536.0,94534.0,0.1923]
[1745720560632,0.3896,94536.0,94534.0,0.1873]
[1745720560839,0.3896,94536.0,94535.0,0.005]
[1745720561236,0.3896,94536.0,94534.0,0.1923]
[1745720562842,0.3896,94536.0,94535.0,0.005]
[1745720563544,0.3896,94536.0,94534.0,0.1923]
[1745720563944,0.1969,94536.0,94535.0,0.005]
[1745720565642,0.1969,94536.0,94535.0,0.1925]
[1745720566040,0.1943,94539.0,94535.0,0.1925]
[1745720566239,0.1943,94539.0,94535.0,0.4039722]
[1745720566445,0.1943,94539.0,94536.0,0.1971]
[1745720566845,0.1943,94539.0,94537.0,0.1916]
[1745720567952,0.4057656,94539.0,94537.0,0.1916]
[1745720568252,0.2114662,94538.0,94537.0,0.1916]
[1745720569054,0.1943,94539.0,94537.0,0.1956]
[1745720570254,0.1943,94539.0,94537.0,0.1916]
[1745720570457,0.1943,94539.0,94537.0,0.1956]
[1745720570750,0.1943,94539.0,94538.0,0.2114662]
[1745720571142,0.1943,94539.0,94538.0,0.3942662]
[1745720572650,0.1943,94539.0,94538.0,0.3982662]
[1745720575355,0.405764,94539.0,94538.0,0.004]
[1745720575749,0.211478,94533.0,94526.0,0.2114929]
[1745720575945,0.5902,94532.0,94527.0,0.3946906]
[1745720577153,0.5902,94532.0,94528.0,0.1904]
[1745720578443,0.8016797,94532.0,94528.0,0.1904]
[1745720578650,0.5902,94532.0,94528.0,0.1904]
[1745720578952,0.5902,94532.0,94528.0,0.1954]
[1745720579255,0.5902,94532.0,94528.0,0.4068884]
[1745720580945,0.5902,94532.0,94531.0,0.2114819]
[1745720581148,0.392,94532.0,94531.0,0.2114819]
[1745720581354,0.2127597,94541.0,94529.0,0.2372716]
[1745720581355,0.1955,94537.0,94536.0,0.2114707]
[1745720581558,0.3911,94540.0,94535.0,0.3701]
[1745720581853,0.5866,94540.0,94539.0,0.211464]
[1745720582849,0.5866,94540.0,94537.0,0.5888675]
[1745720583053,0.5866,94540.0,94539.0,0.003]
[1745720583856,0.7980618,94540.0,94539.0,0.003]
[1745720584757,0.2114662,94538.0,94537.0,0.1857]
[1745720584958,0.2114662,94538.0,94537.0,0.1887]
[1745720585557,0.2114662,94538.0,94537.0,0.1857]
[1745720586060,0.2114662,94538.0,94537.0,0.1887]
[1745720588558,0.2114662,94538.0,94537.0,0.003]
[1745720589670,0.6394658,94540.0,94537.0,0.003]
[1745720589671,0.5866,94540.0,94537.0,0.003]
[1745720589861,0.0013,94541.0,94538.0,0.1982]
[1745720590161,0.0013,94541.0,94540.0,0.2114618]
[1745720590357,0.0013,94541.0,94540.0,0.5933618]
[1745720593863,0.0013,94541.0,94540.0,0.5963618]
[1745720601768,0.0013,94541.0,94540.0,0.9571618]
[1745720601974,0.0013,94541.0,94540.0,0.5963618]
[1745720602165,0.0013,94541.0,94540.0,0.9571618]
[1745720604968,0.0013,94541.0,94540.0,0.5963618]
[1745720605376,0.0013,94541.0,94540.0,0.3849]
[1745720605580,0.0013,94541.0,94540.0,0.1944]
[1745720605871,0.5735595,94541.0,94540.0,0.1944]
[1745720606061,0.3621,94541.0,94540.0,0.1944]
[1745720606266,0.3804,94541.0,94540.0,0.1944]
[1745720612193,0.0013,94541.0,94540.0,0.4058618]
[1745720612766,0.0013,94541.0,94540.0,0.5921618]
[1745720617270,0.0013,94541.0,94540.0,0.9529618]
[1745720623480,0.0013,94541.0,94540.0,0.5921618]
[1745720623678,0.0013,94541.0,94540.0,0.9529618]
[1745720625879,0.0013,94541.0,94540.0,0.5921618]
[1745720626181,0.0013,94541.0,94540.0,0.9529618]
[1745720635689,0.0013,94541.0,94540.0,0.5921618]
[1745720635986,0.0013,94541.0,94540.0,0.9529618]
[1745720636786,0.0052,94548.0,94547.0,0.2114461]
[1745720637580,0.0052,94548.0,94547.0,0.5949461]
[1745720638288,0.0052,94548.0,94547.0,0.9557461]
[1745720638983,0.0052,94548.0,94547.0,0.9567461]
[1745720645093,0.0052,94548.0,94547.0,0.7704461]
[1745720645590,0.0052,94548.0,94547.0,0.8485261]
[1745720646194,0.0052,94548.0,94547.0,0.6513261]
[1745720650604,0.0052,94548.0,94547.0,0.2905261]
[1745720654395,0.0052,94548.0,94547.0,0.07908]
[1745720654598,0.2166439,94548.0,94547.0,0.07908]
[1745720654903,0.0052,94548.0,94547.0,0.07908]
[1745720655310,0.3819,94548.0,94547.0,0.07908]
[1745720657410,0.3819,94548.0,94547.0,0.26318]
[1745720660497,0.3819,94548.0,94547.0,0.07908]
[1745720660704,0.5933439,94548.0,94547.0,0.07908]
[1745720661106,0.3819,94548.0,94547.0,0.07908]
[1745720662708,0.3819,94548.0,94547.0,0.2905261]
[1745720664308,0.1997,94548.0,94547.0,0.2905261]
[1745720664507,0.1997,94548.0,94547.0,0.4854261]
[1745720664910,0.0052,94548.0,94547.0,0.4854261]
[1745720669013,0.0052,94548.0,94547.0,0.8462261]
[1745720674017,0.0052,94548.0,94547.0,0.4854261]
[1745720677914,0.0052,94548.0,94547.0,0.6804261]
[1745720683616,0.0052,94548.0,94547.0,1.0412261]
[1745720686111,0.0052,94548.0,94547.0,0.6804261]
[1745720686313,0.0052,94548.0,94547.0,1.0412261]
[1745720686613,0.0052,94548.0,94547.0,0.6804261]
[1745720686810,0.0052,94548.0,94547.0,1.0412261]
[1745720694416,0.0052,94548.0,94547.0,0.6804261]
[1745720694621,0.0052,94548.0,94547.0,1.0412261]
[1745720697720,0.0052,94548.0,94547.0,0.43988]
[1745720697915,0.0052,94548.0,94547.0,0.6513261]
[1745720698119,0.0052,94548.0,94547.0,0.2124461]
[1745720698321,0.185,94548.0,94547.0,0.2124461]
[1745720698914,0.185,94548.0,94547.0,0.5732461]
[1745720703228,0.185,94548.0,94547.0,0.2124461]
[1745720703420,0.185,94548.0,94547.0,0.5732461]
[1745720705430,0.185,94548.0,94547.0,0.2124461]
[1745720705617,0.185,94548.0,94547.0,0.5732461]
[1745720705822,0.185,94548.0,94547.0,0.2124461]
[1745720706024,0.185,94548.0,94547.0,0.5732461]
[1745720707627,0.185,94548.0,94547.0,0.2124461]
[1745720707825,0.185,94548.0,94547.0,0.5732461]
[1745720708624,0.185,94548.0,94547.0,0.2124461]
[1745720708830,0.185,94548.0,94547.0,0.5732461]
[1745720710320,0.18515737,94548.0,94547.0,0.5732461]
[1745720716837,0.18515737,94548.0,94547.0,0.2124461]
[1745720717339,0.18515737,94548.0,94547.0,0.5732461]
[1745720721037,0.18515737,94548.0,94547.0,0.7534461]
[1745720740349,0.18515737,94548.0,94547.0,0.542]
[1745720740549,0.18515737,94548.0,94547.0,0.7534461]
[1745720740758,0.18515737,94548.0,94547.0,0.9454461]
[1745720748453,0.54092537,94548.0,94528.0,0.00158667]
[1745720748653,0.7216,94529.0,94497.0,0.24637983]
[1745720748854,0.7216,94498.0,94497.0,0.31708707]
[1745720749058,0.9331557,94498.0,94497.0,0.1995]
[1745720749365,0.2115737,94490.0,94489.0,0.13435667]
[1745720749668,0.5723737,94490.0,94489.0,0.13435667]
[1745720750467,0.60520444,94490.0,94489.0,0.13435667]
[1745720750765,0.77143074,94490.0,94489.0,0.06360166]
[1745720750959,0.99100444,94490.0,94489.0,0.06460166]
[1745720751367,0.77943074,94490.0,94489.0,0.06460166]
[1745720751660,0.40163074,94490.0,94489.0,0.27617756]
[1745720751965,0.40163074,94490.0,94489.0,0.2125759]
[1745720752158,0.40163074,94490.0,94489.0,0.3325759]
[1745720752769,0.40163074,94490.0,94489.0,0.5202759]
[1745720753163,0.40163074,94490.0,94489.0,0.4002759]
[1745720762459,0.3768779,94490.0,94489.0,0.4002759]
[1745720763167,0.39898249,94490.0,94489.0,0.4002759]
[1745720768172,0.3768779,94490.0,94489.0,0.4002759]
[1745720772872,0.0160779,94490.0,94489.0,0.4002759]
[1745720773072,0.3768779,94490.0,94489.0,0.4002759]
[1745720778774,0.0160779,94490.0,94489.0,0.4002759]
[1745720778980,0.3768779,94490.0,94489.0,0.4002759]